[Event "Live Chess"]
[Site "Chess.com"]
[Date "2024.06.02"]
[Round "-"]
[White "booktrunk"]
[Black "dl_chess"]
[Result "0-1"]
[WhiteElo "1522"]
[BlackElo "1185"]
[TimeControl "300"]
[EndTime "23:34:30 PDT"]
[Termination "dl_chess won by resignation"]

1. d4 {[%clk 0:04:52.2]} 1... Nf6 {[%clk 0:04:58.1]} 2. Nc3 {[%clk 0:04:47.2]}
2... g6 {[%clk 0:04:55.1]} 3. Bf4 {[%clk 0:04:46.1]} 3... a6 {[%clk 0:04:46.4]}
4. e3 {[%clk 0:04:44.4]} 4... Bg7 {[%clk 0:04:44.8]} 5. Nf3 {[%clk 0:04:42.5]}
5... d6 {[%clk 0:04:43.3]} 6. Bd3 {[%clk 0:04:38.8]} 6... O-O {[%clk 0:04:36.5]}
7. O-O {[%clk 0:04:37.3]} 7... Nh5 {[%clk 0:04:31.9]} 8. Bg3 {[%clk 0:04:34.8]}
8... Nxg3 {[%clk 0:04:30.1]} 9. fxg3 {[%clk 0:04:33.4]} 9... Bg4 {[%clk
0:04:20.4]} 10. Rb1 {[%clk 0:04:30.7]} 10... Nd7 {[%clk 0:04:16.4]} 11. Be2
{[%clk 0:04:29.4]} 11... Bxf3 {[%clk 0:04:02.7]} 12. Bxf3 {[%clk 0:04:27.9]}
12... Rb8 {[%clk 0:03:59.9]} 13. Nd5 {[%clk 0:04:14.9]} 13... c6 {[%clk
0:03:51.1]} 14. Nf4 {[%clk 0:04:13.3]} 14... e5 {[%clk 0:03:46.5]} 15. dxe5
{[%clk 0:04:10.9]} 15... Bxe5 {[%clk 0:03:43]} 16. Nd3 {[%clk 0:04:06.6]} 16...
Bg7 {[%clk 0:03:37.8]} 17. Nf2 {[%clk 0:04:04.6]} 17... d5 {[%clk 0:03:35.1]}
18. e4 {[%clk 0:04:02.4]} 18... dxe4 {[%clk 0:03:27.3]} 19. Nxe4 {[%clk
0:03:59.3]} 19... Re8 {[%clk 0:03:22.1]} 20. Ng5 {[%clk 0:03:32.8]} 20... Ne5
{[%clk 0:03:07.6]} 21. Qxd8 {[%clk 0:03:28.7]} 21... Rbxd8 {[%clk 0:03:03.8]}
22. c3 {[%clk 0:03:11.4]} 22... h6 {[%clk 0:03:01.5]} 23. Nh3 {[%clk 0:03:06.8]}
23... Rd2 {[%clk 0:02:54.9]} 24. Rfd1 {[%clk 0:02:56.4]} 24... Nxf3+ {[%clk
0:02:48]} 25. gxf3 {[%clk 0:02:53.5]} 25... Ree2 {[%clk 0:02:46.3]} 26. Rxd2
{[%clk 0:02:52.2]} 26... Rxd2 {[%clk 0:02:45]} 27. Nf4 {[%clk 0:02:50.3]} 27...
Be5 {[%clk 0:02:36.9]} 28. Ng2 {[%clk 0:02:44.6]} 28... g5 {[%clk 0:02:33.1]}
29. Kf1 {[%clk 0:02:36.6]} 29... f5 {[%clk 0:02:27.5]} 30. f4 {[%clk 0:02:33.2]}
30... gxf4 {[%clk 0:02:22.2]} 31. gxf4 {[%clk 0:02:31.9]} 31... Bf6 {[%clk
0:02:11]} 32. a3 {[%clk 0:02:23.4]} 32... Kf7 {[%clk 0:02:08.7]} 33. Kg1 {[%clk
0:02:18]} 33... b5 {[%clk 0:02:02.9]} 34. Ne3 {[%clk 0:02:16.5]} 34... Ke6
{[%clk 0:01:53.4]} 35. Re1 {[%clk 0:02:10]} 35... Bh4 {[%clk 0:01:34.4]} 36.
Ng2+ {[%clk 0:01:51.2]} 36... Bxe1 {[%clk 0:01:32.2]} 37. Nxe1 {[%clk
0:01:50.3]} 37... Rxb2 {[%clk 0:01:31.1]} 38. h3 {[%clk 0:01:47.2]} 38... Rb3
{[%clk 0:01:29.7]} 0-1

[Event "Live Chess"]
[Site "Chess.com"]
[Date "2024.06.02"]
[Round "-"]
[White "ProfPoisson"]
[Black "peteopeteo"]
[Result "1-0"]
[WhiteElo "1286"]
[BlackElo "1543"]
[TimeControl "300"]
[EndTime "23:34:45 PDT"]
[Termination "ProfPoisson won by resignation"]

1. e4 {[%clk 0:04:52.3]} 1... c6 {[%clk 0:04:59.3]} 2. d4 {[%clk 0:04:49.5]}
2... d5 {[%clk 0:04:58.6]} 3. exd5 {[%clk 0:04:48.2]} 3... cxd5 {[%clk
0:04:58.5]} 4. c4 {[%clk 0:04:46.2]} 4... Nf6 {[%clk 0:04:56.9]} 5. Nc3 {[%clk
0:04:43.8]} 5... Bf5 {[%clk 0:04:54]} 6. Qb3 {[%clk 0:04:37.4]} 6... Bc8 {[%clk
0:04:27.7]} 7. cxd5 {[%clk 0:04:29.7]} 7... Nbd7 {[%clk 0:04:11.4]} 8. Bb5
{[%clk 0:04:21.3]} 8... a6 {[%clk 0:04:06.5]} 9. Bxd7+ {[%clk 0:04:15.9]} 9...
Qxd7 {[%clk 0:04:06.4]} 10. Nge2 {[%clk 0:04:12]} 10... b5 {[%clk 0:03:46.2]}
11. Nf4 {[%clk 0:04:08.1]} 11... g6 {[%clk 0:03:34.6]} 12. O-O {[%clk
0:04:05.8]} 12... Bg7 {[%clk 0:03:32.3]} 13. Be3 {[%clk 0:03:52.2]} 13... Bb7
{[%clk 0:03:25.4]} 14. a4 {[%clk 0:03:47.1]} 14... O-O {[%clk 0:03:10.6]} 15.
axb5 {[%clk 0:03:43.8]} 15... axb5 {[%clk 0:03:10.5]} 16. Rxa8 {[%clk
0:03:39.9]} 16... Rxa8 {[%clk 0:03:08.9]} 17. Qxb5 {[%clk 0:03:33.8]} 17... Qxb5
{[%clk 0:03:02.9]} 18. Nxb5 {[%clk 0:03:31.7]} 18... Nxd5 {[%clk 0:02:58.8]} 19.
Nxd5 {[%clk 0:03:26.9]} 19... Bxd5 {[%clk 0:02:56.7]} 20. Nc7 {[%clk 0:03:20.4]}
20... Rd8 {[%clk 0:02:50]} 21. Nxd5 {[%clk 0:03:17.7]} 21... Rxd5 {[%clk
0:02:49.9]} 22. Rb1 {[%clk 0:03:15.2]} 22... Bxd4 {[%clk 0:02:48.1]} 23. Bxd4
{[%clk 0:03:09.9]} 23... Rxd4 {[%clk 0:02:48]} 24. b4 {[%clk 0:03:07.9]} 24...
Rd6 {[%clk 0:02:39.3]} 25. b5 {[%clk 0:03:06.1]} 25... Rb6 {[%clk 0:02:37.3]}
26. f4 {[%clk 0:03:03.7]} 26... Kf8 {[%clk 0:02:32.2]} 27. Kf2 {[%clk
0:03:03.2]} 27... f5 {[%clk 0:02:30.1]} 28. Kf3 {[%clk 0:03:00.3]} 28... e6
{[%clk 0:02:23.4]} 29. h4 {[%clk 0:02:56.6]} 29... Ke7 {[%clk 0:02:22.4]} 30. g4
{[%clk 0:02:54.7]} 30... Kd6 {[%clk 0:02:17.7]} 31. h5 {[%clk 0:02:50.4]} 31...
Kc5 {[%clk 0:02:16.5]} 32. gxf5 {[%clk 0:02:46.6]} 32... exf5 {[%clk 0:02:15.2]}
33. hxg6 {[%clk 0:02:41.4]} 33... hxg6 {[%clk 0:02:15.1]} 34. Kg3 {[%clk
0:02:38.6]} 34... Rxb5 {[%clk 0:02:14.1]} 35. Rxb5+ {[%clk 0:02:33.8]} 35...
Kxb5 {[%clk 0:02:13.5]} 36. Kh4 {[%clk 0:02:32.6]} 36... Kc4 {[%clk 0:02:12.8]}
37. Kg5 {[%clk 0:02:32.2]} 37... Kd4 {[%clk 0:02:11.8]} 38. Kxg6 {[%clk
0:02:31.8]} 38... Ke4 {[%clk 0:02:11.3]} 39. Kg5 {[%clk 0:02:29.7]} 39... Kd5
{[%clk 0:01:48.1]} 40. Kxf5 {[%clk 0:02:29.6]} 40... Kd6 {[%clk 0:01:47.7]} 41.
Kf6 {[%clk 0:02:24.5]} 41... Kd7 {[%clk 0:01:47.1]} 42. f5 {[%clk 0:02:17.4]}
42... Ke8 {[%clk 0:01:46.3]} 43. Ke6 {[%clk 0:02:15.7]} 43... Kf8 {[%clk
0:01:42.9]} 44. Kf6 {[%clk 0:02:14.3]} 44... Ke8 {[%clk 0:01:33.8]} 45. Kg7
{[%clk 0:02:12.7]} 1-0

[Event "Live Chess"]
[Site "Chess.com"]
[Date "2024.06.02"]
[Round "-"]
[White "RockTroll"]
[Black "Ziipyyy"]
[Result "1-0"]
[WhiteElo "2183"]
[BlackElo "1312"]
[TimeControl "300"]
[EndTime "23:34:46 PDT"]
[Termination "RockTroll won on time"]

1. Nf3 {[%clk 0:04:57.9]} 1... Nf6 {[%clk 0:04:57.5]} 2. g3 {[%clk 0:04:57.8]}
2... d6 {[%clk 0:04:56.8]} 3. Bg2 {[%clk 0:04:57.7]} 3... g6 {[%clk 0:04:55.6]}
4. d3 {[%clk 0:04:56.6]} 4... Bg7 {[%clk 0:04:55]} 5. Bd2 {[%clk 0:04:55.3]}
5... O-O {[%clk 0:04:52.4]} 6. Qc1 {[%clk 0:04:54.8]} 6... Nbd7 {[%clk
0:04:49.7]} 7. Bh6 {[%clk 0:04:54.4]} 7... e5 {[%clk 0:04:46.7]} 8. h4 {[%clk
0:04:53.8]} 8... Ng4 {[%clk 0:04:36.4]} 9. Bxg7 {[%clk 0:04:52.2]} 9... Kxg7
{[%clk 0:04:34.9]} 10. h5 {[%clk 0:04:50.6]} 10... Ndf6 {[%clk 0:04:23.7]} 11.
Nc3 {[%clk 0:04:44.2]} 11... Nxh5 {[%clk 0:04:08.2]} 12. Qd2 {[%clk 0:04:41.8]}
12... f5 {[%clk 0:03:56.4]} 13. e3 {[%clk 0:04:37.7]} 13... Bd7 {[%clk
0:03:44.4]} 14. O-O-O {[%clk 0:04:35.8]} 14... Bc6 {[%clk 0:03:41.7]} 15. Rxh5
{[%clk 0:04:31.1]} 15... gxh5 {[%clk 0:03:40]} 16. Rh1 {[%clk 0:04:30.7]} 16...
Qe8 {[%clk 0:03:37.1]} 17. e4 {[%clk 0:04:20]} 17... f4 {[%clk 0:03:32.3]} 18.
Ng5 {[%clk 0:04:08.2]} 18... Qg6 {[%clk 0:03:21.1]} 19. gxf4 {[%clk 0:04:02.3]}
19... Rxf4 {[%clk 0:03:15.5]} 20. Nh3 {[%clk 0:03:57.9]} 20... Rf7 {[%clk
0:02:43.4]} 21. f4 {[%clk 0:03:57.2]} 21... exf4 {[%clk 0:02:36]} 22. Nxf4
{[%clk 0:03:55.9]} 22... Rxf4 {[%clk 0:01:37.2]} 23. Qxf4 {[%clk 0:03:30.5]}
23... Rf8 {[%clk 0:01:32.6]} 24. Qg3 {[%clk 0:03:19.8]} 24... Qg5+ {[%clk
0:01:26.4]} 25. Kb1 {[%clk 0:03:17.8]} 25... Bd7 {[%clk 0:01:01.3]} 26. Bf3
{[%clk 0:03:06.4]} 26... Qe3 {[%clk 0:00:39.8]} 27. Rf1 {[%clk 0:02:56.3]} 27...
Rf4 {[%clk 0:00:11.8]} 28. Nd5 {[%clk 0:02:50.4]} 28... Rxf3 {[%clk 0:00:06.8]}
29. Qxf3 {[%clk 0:02:44.7]} 29... Qxf3 {[%clk 0:00:04.7]} 30. Rxf3 {[%clk
0:02:44]} 30... c6 {[%clk 0:00:03.3]} 31. Nf4 {[%clk 0:02:43]} 31... Nh2 {[%clk
0:00:00.7]} 32. Rf2 {[%clk 0:02:38.7]} 1-0

[Event "Live Chess"]
[Site "Chess.com"]
[Date "2024.06.02"]
[Round "-"]
[White "KeithArkell"]
[Black "JoeyCage"]
[Result "1/2-1/2"]
[WhiteElo "2428"]
[BlackElo "2397"]
[TimeControl "300"]
[EndTime "23:34:47 PDT"]
[Termination "Game drawn by repetition"]

1. d4 {[%clk 0:04:57.1]} 1... e6 {[%clk 0:04:58.4]} 2. Nf3 {[%clk 0:04:56.3]}
2... Nf6 {[%clk 0:04:56.8]} 3. c4 {[%clk 0:04:55.2]} 3... d5 {[%clk 0:04:55.3]}
4. cxd5 {[%clk 0:04:54]} 4... exd5 {[%clk 0:04:54.1]} 5. Nc3 {[%clk 0:04:53.7]}
5... c6 {[%clk 0:04:52.2]} 6. Qc2 {[%clk 0:04:52.4]} 6... Nbd7 {[%clk
0:04:47.6]} 7. Bg5 {[%clk 0:04:51.2]} 7... Be7 {[%clk 0:04:46.2]} 8. e3 {[%clk
0:04:50.8]} 8... O-O {[%clk 0:04:45]} 9. Bd3 {[%clk 0:04:50]} 9... Re8 {[%clk
0:04:39.8]} 10. O-O {[%clk 0:04:47.5]} 10... h6 {[%clk 0:04:33]} 11. Bh4 {[%clk
0:04:45.3]} 11... Ne4 {[%clk 0:04:26.9]} 12. Bxe4 {[%clk 0:04:44.3]} 12... dxe4
{[%clk 0:04:24.7]} 13. Qxe4 {[%clk 0:04:43.1]} 13... f5 {[%clk 0:04:06.4]} 14.
Bxe7 {[%clk 0:04:37.9]} 14... fxe4 {[%clk 0:04:04.6]} 15. Bxd8 {[%clk
0:04:36.7]} 15... exf3 {[%clk 0:04:00.8]} 16. Bc7 {[%clk 0:04:33.8]} 16... fxg2
{[%clk 0:03:59.3]} 17. Kxg2 {[%clk 0:04:33.2]} 17... Nf6 {[%clk 0:03:56.1]} 18.
Be5 {[%clk 0:04:31.5]} 18... Ng4 {[%clk 0:03:50.7]} 19. Bg3 {[%clk 0:04:30.6]}
19... Bd7 {[%clk 0:03:46.2]} 20. h3 {[%clk 0:04:29]} 20... Nf6 {[%clk
0:03:44.8]} 21. Be5 {[%clk 0:04:28.3]} 21... Nd5 {[%clk 0:03:40.3]} 22. Nxd5
{[%clk 0:04:26.8]} 22... cxd5 {[%clk 0:03:38.8]} 23. Rac1 {[%clk 0:04:26.1]}
23... Rac8 {[%clk 0:03:37.4]} 24. b3 {[%clk 0:04:21.3]} 24... Kf7 {[%clk
0:03:33.9]} 25. Kg3 {[%clk 0:04:19.6]} 25... Rxc1 {[%clk 0:03:30.8]} 26. Rxc1
{[%clk 0:04:18.1]} 26... Rc8 {[%clk 0:03:30.1]} 27. Rxc8 {[%clk 0:04:16.9]}
27... Bxc8 {[%clk 0:03:28.6]} 28. Bb8 {[%clk 0:04:15.4]} 28... a6 {[%clk
0:03:26.6]} 29. h4 {[%clk 0:04:14.6]} 29... g6 {[%clk 0:03:25.1]} 30. Kf4 {[%clk
0:04:13.7]} 30... Ke6 {[%clk 0:03:21.8]} 31. Be5 {[%clk 0:04:12]} 31... Bd7
{[%clk 0:03:16.3]} 32. Bg7 {[%clk 0:04:10.9]} 32... h5 {[%clk 0:03:15]} 33. Kg5
{[%clk 0:04:09.8]} 33... Be8 {[%clk 0:03:13]} 34. Be5 {[%clk 0:04:08.8]} 34...
Kf7 {[%clk 0:03:10]} 35. Bb8 {[%clk 0:04:07.5]} 35... Bb5 {[%clk 0:03:07.1]} 36.
Kf4 {[%clk 0:04:05.6]} 36... Ke6 {[%clk 0:03:05.7]} 37. Kg5 {[%clk 0:04:05]}
37... Kf7 {[%clk 0:03:04.6]} 38. f3 {[%clk 0:04:04.5]} 38... Be2 {[%clk
0:03:02.1]} 39. Kf4 {[%clk 0:04:02.7]} 39... Ke6 {[%clk 0:02:55.6]} 40. e4
{[%clk 0:04:02]} 40... Bd3 {[%clk 0:02:51.8]} 41. a3 {[%clk 0:03:57.5]} 41...
Bc2 {[%clk 0:02:50.4]} 42. b4 {[%clk 0:03:56.1]} 42... Bb1 {[%clk 0:02:47.1]}
43. Ke3 {[%clk 0:03:54.6]} 43... Bc2 {[%clk 0:02:45.4]} 44. Bg3 {[%clk
0:03:53.3]} 44... Bb1 {[%clk 0:02:43.8]} 45. Be1 {[%clk 0:03:45.9]} 45... Bc2
{[%clk 0:02:42.5]} 46. Bg3 {[%clk 0:03:43.3]} 46... Bb1 {[%clk 0:02:41.5]} 47.
a4 {[%clk 0:03:42.9]} 47... Bc2 {[%clk 0:02:38.2]} 48. a5 {[%clk 0:03:41.9]}
48... Bb1 {[%clk 0:02:37.2]} 49. Kf4 {[%clk 0:03:40.6]} 49... Bc2 {[%clk
0:02:36.1]} 50. Bf2 {[%clk 0:03:39.2]} 50... Bb1 {[%clk 0:02:35.1]} 51. Ke3
{[%clk 0:03:38.4]} 51... Bc2 {[%clk 0:02:34.1]} 52. Bg3 {[%clk 0:03:37.7]} 52...
Bb1 {[%clk 0:02:33.3]} 53. Bb8 {[%clk 0:03:37.4]} 53... Bc2 {[%clk 0:02:32.2]}
54. Kf4 {[%clk 0:03:36.9]} 54... Bb1 {[%clk 0:02:31.4]} 55. e5 {[%clk
0:03:34.3]} 55... Bc2 {[%clk 0:02:30]} 56. Kg5 {[%clk 0:03:33.4]} 56... Bb1
{[%clk 0:02:28.2]} 57. Kh6 {[%clk 0:03:28.4]} 57... Kf7 {[%clk 0:02:27]} 58. Bd6
{[%clk 0:03:26.3]} 58... Bc2 {[%clk 0:02:25.6]} 59. Kg5 {[%clk 0:03:22.2]} 59...
Bd3 {[%clk 0:02:22.9]} 60. Bc5 {[%clk 0:03:20]} 60... Bc2 {[%clk 0:02:21.7]} 61.
Bd6 {[%clk 0:03:18.1]} 61... Bd3 {[%clk 0:02:21]} 62. Bc5 {[%clk 0:03:17.6]}
62... Bc2 {[%clk 0:02:20.3]} 63. Bd6 {[%clk 0:03:17.1]} 1/2-1/2

[Event "Live Chess"]
[Site "Chess.com"]
[Date "2024.06.02"]
[Round "-"]
[White "febray_27"]
[Black "AlanBstard10"]
[Result "1-0"]
[WhiteElo "2050"]
[BlackElo "1167"]
[TimeControl "300"]
[EndTime "23:36:02 PDT"]
[Termination "febray_27 won by resignation"]

1. Nf3 {[%clk 0:04:57.9]} 1... d5 {[%clk 0:04:56.2]} 2. d4 {[%clk 0:04:57.3]}
2... Nf6 {[%clk 0:04:53.4]} 3. g3 {[%clk 0:04:56.9]} 3... c5 {[%clk 0:04:49.8]}
4. Bg2 {[%clk 0:04:56.1]} 4... e6 {[%clk 0:04:46.8]} 5. O-O {[%clk 0:04:54]}
5... Bd6 {[%clk 0:04:42.7]} 6. c4 {[%clk 0:04:53.2]} 6... b6 {[%clk 0:04:34.7]}
7. Nc3 {[%clk 0:04:52.5]} 7... Bb7 {[%clk 0:04:33.8]} 8. cxd5 {[%clk 0:04:51.8]}
8... Nxd5 {[%clk 0:04:32.2]} 9. dxc5 {[%clk 0:04:51.4]} 9... bxc5 {[%clk
0:04:30.2]} 10. Nxd5 {[%clk 0:04:48.4]} 10... Bxd5 {[%clk 0:04:28.8]} 11. Re1
{[%clk 0:04:46.6]} 11... O-O {[%clk 0:04:26.4]} 12. e4 {[%clk 0:04:46.1]} 12...
Bb7 {[%clk 0:04:19.5]} 13. Qc2 {[%clk 0:04:45.5]} 13... Nc6 {[%clk 0:04:17.3]}
14. Be3 {[%clk 0:04:44.8]} 14... Rc8 {[%clk 0:04:14.1]} 15. Rad1 {[%clk
0:04:44.3]} 15... Qc7 {[%clk 0:04:09.4]} 16. Bxc5 {[%clk 0:04:41.7]} 16... Bxc5
{[%clk 0:04:07.8]} 17. Qxc5 {[%clk 0:04:41.2]} 17... Qb8 {[%clk 0:03:54.9]} 18.
Qa3 {[%clk 0:04:34.9]} 18... e5 {[%clk 0:03:45]} 19. Rd6 {[%clk 0:04:28.2]}
19... Rfd8 {[%clk 0:03:38.6]} 20. Red1 {[%clk 0:04:27.3]} 20... Rxd6 {[%clk
0:03:36.9]} 21. Rxd6 {[%clk 0:04:26.7]} 21... Rd8 {[%clk 0:03:24.4]} 22. Rxd8+
{[%clk 0:04:17.1]} 22... Qxd8 {[%clk 0:03:22.9]} 23. Qb3 {[%clk 0:04:13.4]}
23... Qc7 {[%clk 0:03:14.4]} 24. Qc4 {[%clk 0:03:51.3]} 24... h6 {[%clk
0:03:06.2]} 25. b4 {[%clk 0:03:50]} 25... a6 {[%clk 0:03:01.1]} 26. a4 {[%clk
0:03:48.5]} 26... Qd6 {[%clk 0:02:52]} 27. h4 {[%clk 0:03:32.5]} 27... Qxb4
{[%clk 0:02:50.5]} 28. Qxb4 {[%clk 0:03:31]} 28... Nxb4 {[%clk 0:02:49.4]} 29.
Nxe5 {[%clk 0:03:30.9]} 29... Nc2 {[%clk 0:02:41.2]} 30. Nd7 {[%clk 0:03:28.5]}
30... Bc6 {[%clk 0:02:37.6]} 31. a5 {[%clk 0:03:26.9]} 31... Bxd7 {[%clk
0:02:36]} 32. Bf1 {[%clk 0:03:22.4]} 32... Nd4 {[%clk 0:02:32.1]} 33. Bxa6
{[%clk 0:03:21.3]} 33... Bb5 {[%clk 0:02:25.4]} 34. Bxb5 {[%clk 0:03:18.4]}
34... Nxb5 {[%clk 0:02:24.4]} 35. a6 {[%clk 0:03:18.1]} 35... Kf8 {[%clk
0:02:21.8]} 36. Kf1 {[%clk 0:03:18]} 36... Ke7 {[%clk 0:02:20.7]} 37. Ke2 {[%clk
0:03:17.9]} 37... Kd6 {[%clk 0:02:20]} 38. Kd3 {[%clk 0:03:17.8]} 38... Kc6
{[%clk 0:02:19.5]} 39. Kc4 {[%clk 0:03:12.5]} 39... Kb6 {[%clk 0:02:18.5]} 40.
Kd5 {[%clk 0:03:12.4]} 40... Kxa6 {[%clk 0:02:17.4]} 41. f4 {[%clk 0:03:12.3]}
41... Kb6 {[%clk 0:02:15.9]} 42. e5 {[%clk 0:03:12.2]} 42... Nc7+ {[%clk
0:02:14]} 43. Kd6 {[%clk 0:03:11]} 43... Nb5+ {[%clk 0:02:00.2]} 44. Ke7 {[%clk
0:03:10]} 44... f5 {[%clk 0:01:56.9]} 45. exf6 {[%clk 0:03:08.4]} 45... gxf6
{[%clk 0:01:55.3]} 46. Kxf6 {[%clk 0:03:08]} 46... Nd4 {[%clk 0:01:54]} 47. Kg6
{[%clk 0:03:06.8]} 47... Kc5 {[%clk 0:01:50.6]} 48. Kxh6 {[%clk 0:03:05.5]}
48... Kd6 {[%clk 0:01:49.7]} 49. Kg6 {[%clk 0:03:04.7]} 49... Ne6 {[%clk
0:01:48.1]} 50. f5 {[%clk 0:03:03.5]} 50... Nf8+ {[%clk 0:01:44.5]} 51. Kf6
{[%clk 0:03:02.7]} 51... Nh7+ {[%clk 0:01:42.7]} 52. Kg7 {[%clk 0:03:00.1]}
52... Ke5 {[%clk 0:01:40.2]} 53. Kxh7 {[%clk 0:02:57.2]} 53... Kxf5 {[%clk
0:01:39.8]} 54. Kg7 {[%clk 0:02:54.8]} 54... Kg4 {[%clk 0:01:38.9]} 55. Kg6
{[%clk 0:02:54.4]} 55... Kxg3 {[%clk 0:01:36.3]} 56. h5 {[%clk 0:02:53.8]} 1-0

[Event "Live Chess"]
[Site "Chess.com"]
[Date "2024.06.02"]
[Round "-"]
[White "Ferrarifan27"]
[Black "matt1979"]
[Result "1-0"]
[WhiteElo "2122"]
[BlackElo "1385"]
[TimeControl "300"]
[EndTime "23:36:44 PDT"]
[Termination "Ferrarifan27 won by resignation"]

1. e4 {[%clk 0:04:56.3]} 1... d6 {[%clk 0:04:58]} 2. d4 {[%clk 0:04:53.7]} 2...
Nf6 {[%clk 0:04:55.3]} 3. Nc3 {[%clk 0:04:51.2]} 3... Nbd7 {[%clk 0:04:49.7]} 4.
Nf3 {[%clk 0:04:45.4]} 4... e5 {[%clk 0:04:45.7]} 5. dxe5 {[%clk 0:04:43.3]}
5... dxe5 {[%clk 0:04:43]} 6. Bc4 {[%clk 0:04:36.6]} 6... Bb4 {[%clk 0:04:32.3]}
7. Bg5 {[%clk 0:04:22.2]} 7... h6 {[%clk 0:04:25.1]} 8. Bh4 {[%clk 0:04:20.1]}
8... O-O {[%clk 0:04:23.1]} 9. Qe2 {[%clk 0:04:14.4]} 9... c6 {[%clk 0:04:19.3]}
10. O-O {[%clk 0:04:11]} 10... Qc7 {[%clk 0:04:11]} 11. Rad1 {[%clk 0:04:07.8]}
11... Bxc3 {[%clk 0:03:58.5]} 12. bxc3 {[%clk 0:04:06.4]} 12... Nc5 {[%clk
0:03:57.3]} 13. Bxf6 {[%clk 0:04:00.5]} 13... gxf6 {[%clk 0:03:52.5]} 14. Qe3
{[%clk 0:03:59.6]} 14... Kh7 {[%clk 0:03:50.9]} 15. Qxc5 {[%clk 0:03:56.3]} 1-0

[Event "Live Chess"]
[Site "Chess.com"]
[Date "2024.06.02"]
[Round "-"]
[White "RichardABates"]
[Black "Greenbecker"]
[Result "1-0"]
[WhiteElo "2358"]
[BlackElo "1726"]
[TimeControl "300"]
[EndTime "23:37:48 PDT"]
[Termination "RichardABates won by resignation"]

1. d4 {[%clk 0:04:58.2]} 1... d5 {[%clk 0:04:57.7]} 2. c4 {[%clk 0:04:55.4]}
2... e6 {[%clk 0:04:56.2]} 3. Nf3 {[%clk 0:04:53.9]} 3... Nf6 {[%clk 0:04:55.6]}
4. g3 {[%clk 0:04:52.5]} 4... Be7 {[%clk 0:04:54.6]} 5. Bg2 {[%clk 0:04:51.1]}
5... O-O {[%clk 0:04:54]} 6. O-O {[%clk 0:04:50]} 6... c6 {[%clk 0:04:52.4]} 7.
Qc2 {[%clk 0:04:48.3]} 7... Re8 {[%clk 0:04:51.4]} 8. Nbd2 {[%clk 0:04:46.6]}
8... Nbd7 {[%clk 0:04:50.3]} 9. b3 {[%clk 0:04:43]} 9... Nf8 {[%clk 0:04:49.2]}
10. Bb2 {[%clk 0:04:41]} 10... Bd7 {[%clk 0:04:47.9]} 11. e4 {[%clk 0:04:39.4]}
11... dxe4 {[%clk 0:04:45]} 12. Nxe4 {[%clk 0:04:38]} 12... Rc8 {[%clk
0:04:42.6]} 13. Rad1 {[%clk 0:04:35.5]} 13... Nxe4 {[%clk 0:04:37.1]} 14. Qxe4
{[%clk 0:04:33.6]} 14... Qa5 {[%clk 0:04:30.9]} 15. a3 {[%clk 0:04:20.9]} 15...
b5 {[%clk 0:04:15]} 16. b4 {[%clk 0:04:12]} 16... Qb6 {[%clk 0:04:09.2]} 17. c5
{[%clk 0:04:10.5]} 17... Qc7 {[%clk 0:04:07.9]} 18. Ne5 {[%clk 0:04:08.7]} 18...
f6 {[%clk 0:04:00.9]} 19. Nd3 {[%clk 0:03:51.7]} 19... a5 {[%clk 0:03:58.7]} 20.
Rfe1 {[%clk 0:03:48]} 20... f5 {[%clk 0:03:38.8]} 21. Qe5 {[%clk 0:03:42.2]}
21... Qxe5 {[%clk 0:03:33.7]} 22. Nxe5 {[%clk 0:03:29.7]} 22... axb4 {[%clk
0:03:31.2]} 23. axb4 {[%clk 0:03:28.2]} 23... Bf6 {[%clk 0:03:19.5]} 24. Ra1
{[%clk 0:03:23.8]} 24... Bxe5 {[%clk 0:03:15.4]} 25. dxe5 {[%clk 0:03:20.8]}
25... Ra8 {[%clk 0:03:12.2]} 26. Ra5 {[%clk 0:03:06.5]} 26... Rxa5 {[%clk
0:02:51]} 27. bxa5 {[%clk 0:03:04.9]} 27... Ra8 {[%clk 0:02:48.6]} 28. Bc3
{[%clk 0:03:03.6]} 28... Ng6 {[%clk 0:02:39.3]} 29. Rd1 {[%clk 0:03:01.7]} 29...
Ra7 {[%clk 0:02:32.9]} 30. Rxd7 {[%clk 0:02:50.7]} 30... Rxd7 {[%clk 0:02:29.7]}
31. Bxc6 {[%clk 0:02:48]} 31... Rd1+ {[%clk 0:02:21.7]} 32. Kg2 {[%clk
0:02:46.3]} 32... Rc1 {[%clk 0:02:15.2]} 33. Bd4 {[%clk 0:02:24.5]} 33... Rd1
{[%clk 0:01:56.4]} 34. Be3 {[%clk 0:02:04.9]} 34... Nxe5 {[%clk 0:01:54]} 35.
Bb7 {[%clk 0:02:03.5]} 35... b4 {[%clk 0:01:25.3]} 36. a6 {[%clk 0:02:01.7]}
36... Ra1 {[%clk 0:01:21]} 37. Bd4 {[%clk 0:01:58.3]} 37... Ra2 {[%clk
0:01:16.7]} 38. Bxe5 {[%clk 0:01:56.4]} 38... b3 {[%clk 0:01:15.8]} 39. c6
{[%clk 0:01:55.3]} 39... b2 {[%clk 0:01:13.4]} 40. Bxb2 {[%clk 0:01:53.6]} 40...
Rxb2 {[%clk 0:01:12.6]} 41. a7 {[%clk 0:01:52.4]} 1-0